bitfinex/quotes_ETHUSD_20260305
["timestamp","ask_amount","ask_price","bid_price","bid_amount"]
[1772713165936,2.1161921,2131.0,2129.8,2.03006371]
[1772713166225,1.17309186,2131.2,2130.0,2.03006371]
[1772713166396,1.17309186,2131.2,2130.2,2.03006371]
[1772713166602,1.17309186,2131.2,2130.2,3.53106371]
[1772713166805,2.1161921,2131.1,2130.2,1.501]
[1772713167418,2.1161921,2130.9,2130.2,1.501]
[1772713167735,2.1161921,2130.9,2129.7,4.76095609]
[1772713167736,2.1161921,2130.9,2129.8,4.69519787]
[1772713167940,1.17315814,2131.0,2129.9,2.03006371]
[1772713168131,3.2892827,2131.2,2129.9,2.07701427]
[1772713169114,3.2892827,2131.2,2129.8,4.69519787]
[1772713169115,3.2892827,2131.2,2130.1,1.97495556]
[1772713169644,3.25146313,2131.6,2130.3,1.97495556]
[1772713169942,7.42549292,2131.9,2130.5,1.97495556]
[1772713169943,1.17273966,2131.8,2130.5,1.97495556]
[1772713170742,2.07863521,2131.7,2130.5,1.97495556]
[1772713171821,2.07863521,2131.7,2130.6,1.17337839]
[1772713171822,1.17282792,2131.6,2130.6,1.17337839]
[1772713172043,2.07863521,2131.5,2130.6,1.17337839]
[1772713172342,2.07863521,2131.5,2130.5,1.17339514]
[1772713172836,2.07863521,2131.5,2130.4,2.67544423]
[1772713173041,2.07863521,2131.5,2130.5,0.04693733]
[1772713173543,2.07863521,2131.5,2130.4,2.67544423]
[1772713173924,2.07863521,2131.5,2128.1,2.64711399]
[1772713173925,2.07863521,2131.3,2129.9,1.503]
[1772713174141,2.07863521,2131.3,2130.0,0.065536]
[1772713174927,2.07863521,2131.3,2129.9,1.503]
[1772713176214,2.07863521,2131.1,2130.0,1.17370892]
[1772713177622,2.07863521,2131.1,2130.0,3.14866448]
[1772713177817,2.07863521,2131.1,2130.1,2.02190171]
[1772713178237,2.07863521,2131.1,2130.2,3.14855428]
[1772713178516,2.07863521,2131.1,2130.3,0.04694174]
[1772713178846,2.07963521,2131.1,2130.3,0.04694174]
[1772713179214,0.001,2131.1,2130.3,2.0218973]
[1772713179636,2.07863521,2131.7,2130.4,0.065536]
[1772713179848,2.07863521,2132.0,2130.7,1.97495556]
[1772713180051,2.07863521,2132.0,2130.5,0.04693733]
[1772713180052,3.25124912,2132.0,2130.9,1.97495556]
[1772713180223,3.25124912,2132.0,2131.1,1.17310309]
[1772713180224,3.25124602,2132.0,2131.1,1.17310309]
[1772713180927,2.07863521,2131.9,2130.9,4.6927336]
[1772713182247,1.17271789,2131.8,2130.9,4.6927336]
[1772713182436,2.07863521,2131.8,2131.0,0.04692632]
[1772713182746,1.17265073,2132.0,2131.0,0.04692632]
[1772713182950,2.07863521,2132.1,2131.1,1.97495556]
[1772713183151,2.07863521,2132.1,2131.2,0.04692192]
[1772713183446,2.07863521,2132.1,2131.2,2.02187748]
[1772713183647,3.25206655,2132.4,2131.2,2.02187748]
[1772713184026,2.07863521,2132.3,2131.2,0.04692192]
[1772713184231,2.07863521,2132.3,2131.0,0.065536]
[1772713184450,3.25113309,2132.2,2131.1,1.17310309]
[1772713184651,2.07863521,2132.1,2131.1,1.17310309]
[1772713184823,2.07863521,2132.1,2131.2,0.04692192]
[1772713185152,2.07863521,2132.1,2131.1,3.14805865]
[1772713185349,2.07863521,2132.1,2131.1,1.17310309]
[1772713186021,2.07863521,2132.1,2131.1,3.14805865]
[1772713186222,2.07863521,2132.1,2131.2,0.04692192]
[1772713186418,1.1724763,2132.3,2131.3,1.172993]
[1772713186654,1.1724763,2132.3,2131.4,0.04691751]
[1772713187855,1.1724763,2132.3,2131.3,1.172993]
[1772713188025,3.25111151,2132.3,2131.3,1.172993]
[1772713188227,2.07863521,2132.2,2131.4,0.04691751]
[1772713188452,0.001,2132.4,2131.5,1.17288294]
[1772713188659,0.001,2132.4,2131.6,1.97495556]
[1772713188824,1.99643069,2132.9,2131.6,1.98117363]
[1772713189026,1.99643069,2132.9,2131.6,2.04670963]
[1772713189224,3.16854468,2132.9,2131.6,2.09362274]
[1772713189421,1.99643069,2132.8,2131.6,2.04670963]
[1772713189721,1.99643069,2133.8,2131.9,2.13065862]
[1772713189923,1.99643069,2133.8,2131.8,2.6530076]
[1772713189924,1.99643069,2133.8,2132.1,1.98117363]
[1772713190151,1.99643069,2133.8,2132.3,0.065536]
[1772713190739,1.99643069,2133.8,2132.4,1.17238791]
[1772713190740,1.99643069,2133.6,2132.4,1.17238791]
[1772713191633,0.001,2132.7,2132.4,1.17238791]
[1772713191952,1.99643069,2133.4,2132.4,1.17238791]
[1772713192648,1.17189331,2133.3,2132.3,4.68955167]
[1772713193462,1.99643069,2133.2,2132.3,4.68955167]
[1772713193663,1.99643069,2133.2,2132.0,0.065536]
[1772713193842,1.99643069,2132.8,2131.5,1.17288294]
[1772713194357,1.99643069,2132.8,2131.6,1.98117363]
[1772713194563,1.99643069,2132.8,2131.6,3.48217363]
[1772713194859,3.16865369,2132.7,2131.7,1.1727729]
[1772713195065,1.99643069,2132.6,2131.7,1.21968381]
[1772713195271,1.99643069,2132.6,2131.7,1.1727729]
[1772713196879,1.17233294,2132.5,2131.7,1.1727729]
[1772713197081,3.16876363,2132.5,2131.7,1.1727729]
[1772713198879,1.99643069,2132.4,2131.7,1.1727729]
[1772713199958,1.99643069,2132.4,2131.4,4.6916277]
[1772713200158,1.99643069,2132.4,2131.2,1.17304804]
[1772713200361,1.99643069,2132.4,2131.2,3.15422167]
[1772713200562,1.99643069,2132.4,2131.3,1.98117363]
[1772713200773,3.16883826,2132.4,2131.4,1.17293797]
[1772713200975,1.99643069,2132.4,2131.5,1.98117363]
[1772713201178,1.17237803,2132.5,2131.5,1.98117363]
[1772713201354,3.16880872,2132.5,2131.5,1.98117363]
[1772713201567,1.99643069,2132.4,2131.4,1.17293797]
[1772713203582,1.1724429,2132.3,2131.4,0.0011]
[1772713204090,3.16885561,2132.4,2131.4,0.0011]
[1772713204787,1.99643069,2132.3,2131.4,0.0011]
[1772713205492,1.99643069,2132.1,2131.4,0.0011]
[1772713208462,3.16899505,2132.1,2131.4,0.0011]
[1772713209087,1.99643069,2132.6,2131.4,1.98227363]
[1772713209290,1.99643069,2132.5,2131.4,1.98227363]
[1772713209866,1.17238791,2132.4,2131.5,1.17288294]
[1772713210083,1.99643069,2132.4,2131.5,3.15405657]
[1772713211001,1.99643069,2132.4,2131.5,1.17288294]
[1772713212108,1.99643069,2132.2,2131.4,0.0011]
[1772713213508,1.99643069,2132.2,2131.4,1.17402655]
[1772713214187,1.99643069,2132.0,2131.4,0.0011]
[1772713215703,3.16882095,2132.4,2131.4,1.98227363]
[1772713216005,3.16882807,2132.4,2131.4,1.98227363]
[1772713216209,3.16882807,2132.4,2131.5,3.15405657]
[1772713216707,3.16882807,2132.4,2131.6,1.98117363]
[1772713216708,1.99643069,2132.4,2131.6,1.98117363]
[1772713216903,1.17229873,2132.6,2131.6,1.98227363]
[1772713217406,0.001,2132.2,2131.6,1.98227363]
[1772713218309,6.6864653,2132.7,2131.8,1.98117363]
[1772713218310,1.99743069,2132.7,2131.8,1.98117363]
[1772713218606,1.99643069,2133.6,2131.8,1.98117363]
[1772713218826,1.99643069,2133.6,2132.4,2.06261379]
[1772713218976,1.99643069,2133.6,2132.6,2.06261379]
[1772713219186,2.11776597,2133.9,2132.8,2.06261379]
[1772713219488,1.17253097,2134.0,2132.7,1.505]
[1772713219489,0.001,2134.0,2133.2,2.06261379]
[1772713219694,2.11776597,2134.9,2133.6,2.06261379]
[1772713219984,2.11776597,2134.8,2133.6,1.495]
[1772713220184,2.11776597,2134.6,2133.7,1.17167361]
[1772713220412,2.11776597,2134.6,2133.1,4.75335136]
[1772713220413,2.11776597,2134.4,2133.2,6.75034995]
[1772713220591,2.11776597,2134.1,2133.1,1.495]
[1772713220910,2.11776597,2134.1,2132.3,0.065536]
[1772713220911,2.11776597,2133.6,2132.3,0.065536]
[1772713221412,2.11776597,2133.6,2132.2,3.55861379]
[1772713221616,2.11776597,2133.6,2132.2,1.54289991]
[1772713221913,2.11776597,2133.6,2132.2,1.496]
[1772713222419,2.11776597,2133.4,2132.2,2.66846542]
[1772713222625,2.11776597,2133.3,2132.2,2.66846542]
[1772713222798,2.11776597,2133.2,2131.8,1.17271789]
[1772713223117,2.11776597,2133.2,2131.9,0.04690651]
[1772713223326,2.11776597,2133.2,2131.8,3.23533168]
[1772713223491,2.11776597,2133.2,2131.9,0.04690651]
[1772713223693,2.11776597,2133.2,2131.8,3.23533168]
[1772713223887,2.11776597,2133.2,2131.8,1.17271789]
[1772713224091,2.11776597,2133.1,2131.8,1.17271789]
[1772713224413,2.11776597,2132.9,2131.8,1.17271789]
[1772713224715,2.11776597,2132.9,2131.8,3.23533168]
[1772713224914,2.11776597,2132.9,2131.9,2.06261379]
[1772713225132,2.11776597,2132.9,2131.8,1.17271789]
[1772713225615,1.17204228,2133.1,2131.9,2.1095203]
[1772713226123,1.17204228,2133.1,2131.8,1.17271789]
[1772713226124,2.11776597,2133.0,2131.8,1.17271789]
[1772713226291,1.17211308,2132.9,2132.0,1.17260787]
[1772713226492,3.28986241,2133.0,2132.1,0.04690211]
[1772713226713,3.28986241,2133.0,2132.0,1.17260787]
[1772713226918,3.28986241,2133.0,2132.1,0.04689991]
[1772713227490,2.11776597,2132.9,2132.1,0.04690211]
[1772713228424,1.17216804,2132.8,2131.9,4.69043151]
[1772713228589,3.10843208,2132.8,2131.9,4.69043151]
[1772713229414,1.93626404,2132.8,2131.9,4.69043151]
[1772713229618,1.93626404,2133.4,2132.3,0.0011]
[1772713230131,1.17178345,2133.5,2131.9,4.69043151]
[1772713230132,1.93626404,2133.2,2131.9,1.17266288]
[1772713230418,1.93626404,2133.2,2132.0,0.0011]
[1772713230621,1.93626404,2133.0,2132.0,0.0011]
[1772713232392,4.35421345,2133.0,2132.0,0.0011]
[1772713232589,1.93626404,2132.7,2132.0,0.0011]
[1772713234503,1.17227797,2132.6,2132.0,0.0011]
[1772713234822,1.93626404,2132.5,2132.0,0.0011]
[1772713235829,4.68911188,2132.8,2132.0,0.0011]
[1772713235830,3.10846223,2132.8,2132.0,0.0011]
[1772713236134,3.10844143,2132.8,2132.0,0.0011]
[1772713236504,1.93626404,2132.7,2132.0,0.0011]
[1772713237513,1.17214699,2132.9,2132.0,0.0011]
[1772713237715,1.93626404,2132.8,2132.0,0.0011]
[1772713240130,1.93626404,2132.6,2132.0,0.0011]
[1772713241237,1.93626404,2132.3,2131.8,0.0011]
[1772713241597,1.93626404,2132.3,2131.6,0.0011]
[1772713242011,1.93626404,2132.1,2131.6,0.0011]
[1772713243032,1.93626404,2132.1,2132.0,0.0011]
[1772713243209,1.93626404,2132.1,2131.4,0.0011]
[1772713243410,3.75026404,2132.1,2131.7,0.0011]
[1772713243610,1.93626404,2132.0,2131.7,0.0011]
[1772713244029,1.93626404,2132.0,2131.4,0.0011]
[1772713244625,1.93626404,2131.8,2131.4,0.0011]
[1772713246230,1.93626404,2131.8,2131.1,0.0011]
[1772713246650,1.93626404,2131.6,2130.9,0.0011]
[1772713247026,1.93626404,2131.4,2130.9,0.0011]
[1772713248637,1.17298465,2131.4,2130.9,0.0011]
[1772713248810,1.17286611,2131.6,2130.9,0.0011]
[1772713249009,3.24912695,2131.6,2130.9,0.0011]
[1772713249720,2.07626084,2131.5,2130.9,0.0011]
[1772713250846,2.07626084,2131.6,2130.9,0.0011]
[1772713251017,3.24909033,2131.6,2130.9,0.0011]
[1772713251411,2.62905016,2131.9,2130.9,0.0011]
[1772713251656,2.07626084,2131.9,2130.9,2.05873045]
[1772713251836,3.24892995,2131.9,2130.9,2.05873045]
[1772713252018,2.07626084,2131.8,2130.9,0.0011]
[1772713252955,3.24900497,2131.8,2130.9,2.05873045]
[1772713253132,2.07626084,2131.8,2130.9,2.05873045]
[1772713253336,3.24898527,2131.8,2130.9,2.05873045]
[1772713253533,2.07626084,2131.7,2130.9,0.0011]
[1772713254350,2.07626084,2131.7,2130.9,2.05873045]
[1772713254515,2.07626084,2131.8,2130.9,2.05873045]
[1772713254844,2.07626084,2132.1,2131.1,2.05763045]
[1772713255042,1.17251859,2132.2,2131.1,2.05873045]
[1772713255247,3.24869063,2132.4,2131.2,2.05763045]
[1772713255616,2.07626084,2132.4,2131.2,2.05763045]
[1772713255845,1.17235311,2132.5,2131.2,2.05763045]
[1772713256150,3.24861395,2132.5,2131.2,2.05763045]
[1772713256847,2.07626084,2132.4,2131.4,2.05763045]
[1772713257621,1.17331327,2132.6,2131.4,2.05763045]
[1772713257819,0.001,2132.6,2131.4,2.05763045]
[1772713258955,3.248181,2133.3,2131.8,2.05763045]
[1772713259250,3.248181,2133.3,2131.9,2.05763045]
[1772713259630,3.24815839,2133.3,2131.9,2.05763045]
[1772713260021,2.07626084,2133.2,2131.9,2.05763045]
[1772713260422,2.07626084,2133.2,2131.8,1.516]
[1772713260649,2.07626084,2133.2,2131.8,2.05763045]
[1772713261763,2.07626084,2133.0,2131.9,1.17266288]
[1772713261943,2.07626084,2132.9,2131.8,1.17269303]
[1772713262515,2.07626084,2132.8,2131.6,1.17282792]
[1772713263420,1.816,2132.9,2131.3,4.69196677]
[1772713263421,2.07626084,2132.3,2131.3,1.172993]
[1772713263926,2.07626084,2132.6,2131.4,2.10454796]
[1772713264270,3.24853881,2132.6,2131.4,2.10454796]
[1772713264427,2.07626084,2132.5,2131.4,2.05763045]
[1772713264823,1.816,2132.9,2131.3,1.172993]
[1772713264824,3.24837968,2132.9,2131.6,2.05763045]
[1772713265023,2.07626084,2133.2,2131.8,2.05763045]
[1772713265423,2.07626084,2133.2,2131.7,1.56391091]
[1772713265424,2.07626084,2133.5,2132.0,2.05763045]
[1772713265822,2.07626084,2133.5,2132.2,2.05763045]
[1772713265823,3.24809066,2133.5,2132.2,2.05763045]
[1772713266030,2.07626084,2133.5,2132.2,2.05763045]
[1772713266342,3.24804648,2133.5,2132.2,2.05763045]
[1772713266544,2.07626084,2133.5,2132.2,2.05763045]
[1772713267058,2.07626084,2133.8,2132.4,2.05763045]
[1772713267354,0.001,2134.0,2132.3,0.065536]
[1772713267355,0.001,2134.0,2132.6,2.05763045]
[1772713267563,1.17253645,2134.0,2132.6,2.05763045]
[1772713267864,1.17253645,2134.0,2132.8,2.05763045]
[1772713267865,0.001,2134.0,2132.8,2.05763045]
[1772713268539,2.07726084,2134.0,2132.8,2.05763045]
[1772713269826,2.07726084,2134.0,2132.9,1.17211308]
[1772713269827,3.2488105,2134.0,2132.9,1.17211308]
[1772713270023,0.001,2134.0,2133.0,2.05763045]
[1772713271865,0.001,2134.0,2133.1,1.17200318]
[1772713272058,0.001,2134.0,2133.2,2.05763045]
[1772713272261,4.05702848,2135.0,2133.6,2.05763045]
[1772713272430,4.05702848,2135.0,2133.8,2.05763045]
[1772713272431,0.80980318,2135.0,2133.8,2.05763045]
[1772713273962,0.80980318,2135.0,2134.2,2.05763045]
[1772713274174,0.80980318,2135.0,2134.3,2.05763045]
[1772713274333,0.80980318,2135.0,2134.1,2.70467833]
[1772713274334,1.98077618,2135.0,2134.1,2.70467833]
[1772713274538,1.98077618,2135.0,2133.9,1.1715638]
[1772713274539,2.07626084,2134.9,2133.9,1.1715638]
[1772713275044,1.98077618,2135.0,2133.9,1.1715638]
[1772713275247,0.80980318,2135.0,2134.0,2.05763045]
[1772713275941,1.98077556,2135.0,2134.1,1.171454]
[1772713276141,0.1671074,2135.3,2134.2,2.05763045]
[1772713276346,0.1671074,2135.3,2134.4,2.05763045]
[1772713276547,0.1671074,2135.3,2134.6,2.05763045]
[1772713277566,1.17052158,2135.8,2134.6,2.05763045]
[1772713277770,2.07626084,2135.7,2134.5,1.517]
[1772713278443,2.07626084,2135.5,2134.5,1.17120682]
[1772713279269,2.07626084,2135.5,2134.2,1.17134423]
[1772713279470,0.001,2134.8,2134.2,1.17134423]
[1772713279645,1.98413682,2135.3,2134.2,3.09104559]
[1772713279851,3.15476802,2135.6,2134.3,1.91970136]
[1772713280051,1.98413682,2135.5,2134.3,1.91970136]
[1772713280569,1.17074084,2135.4,2134.4,1.17128935]
[1772713281360,1.98413682,2135.3,2134.0,1.1715089]
[1772713281846,1.98413682,2135.3,2134.1,1.91970136]
[1772713282044,1.98413682,2135.6,2134.1,1.91970136]
[1772713282566,1.17068602,2135.5,2134.3,1.91970136]
[1772713282771,1.98413682,2135.4,2134.3,1.91970136]
[1772713283248,2.72775465,2136.0,2134.7,1.91970136]
[1772713283441,2.72775465,2136.0,2134.2,1.17139911]
[1772713283442,3.15435788,2136.4,2134.9,1.91970136]
[1772713283642,1.98413682,2136.3,2135.0,1.512]
[1772713283840,1.98413682,2136.3,2134.7,1.91970136]
[1772713283841,1.98413682,2136.2,2134.5,0.065536]
[1772713284345,1.98413682,2136.2,2134.5,1.98523736]
[1772713284765,1.98413682,2136.2,2134.6,1.17117961]
[1772713284766,1.98413682,2136.0,2134.6,1.17117961]
[1772713285773,1.98413682,2135.8,2134.6,1.17117961]
[1772713286649,1.98413682,2135.7,2134.2,1.17139911]
[1772713287543,1.98413682,2135.6,2134.2,1.17139911]
[1772713288143,1.98413682,2135.6,2134.3,2.05193291]
[1772713288744,3.14171876,2135.5,2134.4,1.17128935]
[1772713289051,1.97103274,2135.4,2134.4,1.17128935]
[1772713289561,1.97103274,2135.4,2134.0,6.73752938]
[1772713289562,1.97103274,2135.4,2134.1,1.171454]
[1772713290069,1.97103274,2135.4,2134.2,2.05193291]
[1772713290864,1.97103274,2135.2,2134.1,1.17141562]
[1772713291073,1.97103274,2135.2,2133.8,6.73840253]
[1772713291074,1.97103274,2135.2,2133.9,4.68619288]
[1772713291277,1.97103274,2135.2,2134.0,2.05193291]
[1772713291474,1.97103274,2135.2,2134.4,0.0011]
[1772713293075,1.97103274,2135.0,2134.4,0.0011]
[1772713294749,1.97103274,2135.0,2134.1,0.0011]
[1772713295051,1.97103274,2134.8,2134.1,0.0011]
[1772713297256,1.97103274,2134.6,2134.1,0.0011]
[1772713297757,1.97103274,2134.6,2133.9,0.0011]
[1772713298163,1.97103274,2134.5,2133.9,0.0011]
[1772713298664,1.97103274,2134.3,2133.1,1.17197601]
[1772713298847,4.72510359,2134.2,2132.9,3.2240404]
[1772713299047,1.97103274,2134.1,2132.9,3.2240404]
[1772713299246,1.97103274,2134.1,2133.0,2.05193291]
[1772713299247,1.1715089,2134.0,2133.0,2.05193291]
[1772713299781,1.17134423,2134.3,2133.0,2.05193291]
[1772713299985,1.17133388,2134.4,2133.0,2.05193291]
[1772713300578,3.14236662,2134.4,2133.0,2.05193291]
[1772713300751,3.14236662,2134.4,2133.2,2.05193291]
[1772713301073,1.97103274,2134.3,2133.2,2.05193291]
[1772713301663,1.17139911,2134.2,2133.3,1.17189331]
[1772713302683,3.14243185,2134.2,2133.3,1.17189331]
[1772713302888,1.97103274,2134.1,2133.2,1.17191321]
[1772713303182,1.97103274,2134.1,2132.9,1.17211308]
[1772713303553,1.97103274,2134.1,2132.8,6.74059421]
[1772713303554,1.97103274,2133.9,2132.8,1.17213744]
[1772713304487,1.97103274,2133.9,2132.7,3.82262075]
[1772713304691,1.97103274,2133.9,2132.7,5.87455366]
[1772713304992,1.97103274,2133.9,2132.8,2.05193291]
[1772713305552,4.68603561,2134.2,2132.9,1.17211308]
[1772713305780,4.68603561,2134.2,2133.0,2.05193291]
[1772713306280,6.65706835,2134.2,2133.0,2.05193291]
[1772713306713,1.97103274,2134.1,2133.0,2.05193291]
[1772713307000,1.97103274,2134.1,2132.8,4.68845234]
[1772713307001,1.97103274,2134.1,2132.8,1.17213303]
[1772713307154,1.97103274,2134.1,2132.7,1.17219519]
[1772713307352,1.97103274,2134.1,2132.6,8.23682492]
[1772713307353,4.62710214,2133.8,2132.6,1.17223444]
[1772713307558,1.97103274,2133.7,2132.6,1.17223444]
[1772713307782,1.97103274,2133.5,2132.6,1.17223444]
[1772713308165,2.6560694,2133.8,2132.6,1.17223444]
[1772713308364,1.17134423,2134.3,2132.7,2.05193291]
[1772713308563,3.14237697,2134.3,2133.3,0.0011]
[1772713309072,3.14237697,2134.3,2133.3,1.99769161]
[1772713309697,3.14237697,2134.3,2133.4,1.17183838]
[1772713309871,3.14237697,2134.3,2133.3,6.68504513]
[1772713309872,1.17134423,2134.3,2133.3,0.0011]
[1772713310079,1.98670172,2134.2,2133.3,0.0011]
[1772713310276,1.98670172,2134.1,2133.3,0.0011]
[1772713311004,2.47867483,2133.8,2133.3,0.0011]
[1772713311206,1.98670172,2133.7,2133.3,0.0011]
[1772713311409,1.98670172,2133.7,2133.0,0.0011]
[1772713311410,1.98670172,2133.6,2133.0,0.0011]
[1772713311722,1.98670172,2133.4,2132.0,1.17260787]
[1772713311876,1.98670172,2133.3,2132.0,1.17260787]
[1772713312199,1.98670172,2133.3,2131.9,1.1726262]
[1772713312526,1.98670172,2133.3,2131.8,4.6907295]
[1772713312527,1.789,2133.2,2131.6,0.0011]
[1772713312818,1.98670172,2133.0,2131.7,4.69098042]
[1772713313062,1.98670172,2133.0,2131.7,1.1727729]
[1772713313184,1.98670172,2133.0,2131.8,0.04690871]
[1772713314403,1.98670172,2132.8,2131.9,1.17266288]
[1772713314602,1.98670172,2132.8,2131.8,1.17270377]
[1772713315107,1.98670172,2132.8,2131.7,1.1727729]
[1772713315313,1.98670172,2132.8,2131.8,0.04690871]
[1772713316123,1.17211308,2132.9,2131.8,2.04350032]
[1772713316403,4.68845234,2133.0,2131.9,1.17266288]
[1772713316694,4.68845234,2133.0,2132.0,0.04690431]
[1772713317616,4.68845234,2133.0,2131.9,1.17266288]
[1772713318484,1.98670172,2132.9,2131.9,1.17266288]
[1772713320280,1.98670172,2132.9,2131.9,1.21956939]
[1772713320503,1.17216804,2132.8,2131.9,1.21956939]
[1772713320739,3.15886976,2132.8,2131.9,1.21956939]
[1772713321647,3.15886976,2132.8,2131.9,1.17266288]
[1772713321853,3.15886976,2132.8,2132.0,0.04690431]
[1772713322527,3.15886976,2132.8,2132.1,1.17255288]
[1772713322975,4.68806265,2133.1,2132.1,3.16914449]
[1772713322976,1.98670172,2133.1,2132.1,3.16914449]
[1772713323137,1.17175499,2133.6,2132.3,2.5355625]
[1772713323469,3.15821062,2134.0,2132.5,1.99659161]
[1772713324167,1.98670172,2133.9,2132.5,1.99659161]
[1772713324330,1.98670172,2133.9,2132.5,3.47959161]
[1772713324658,3.15832042,2133.8,2132.6,1.17227797]
[1772713324865,1.98670172,2133.7,2132.6,1.17227797]
[1772713325163,1.98670172,2133.6,2132.4,4.68943896]
[1772713325319,1.98670172,2133.6,2132.2,4.68977458]
[1772713325652,1.98670172,2133.3,2132.0,4.69021152]
[1772713326562,1.98670172,2133.3,2132.0,6.68680313]
[1772713326721,1.17194824,2133.2,2132.0,6.68680313]
[1772713326929,1.98670172,2133.0,2131.8,1.17267977]
[1772713327924,1.98670172,2133.0,2132.5,0.0011]
[1772713329130,1.17211308,2132.9,2132.5,0.0011]
[1772713329273,1.98670172,2132.5,2131.6,0.0011]
[1772713329596,1.98670172,2132.4,2131.6,0.0011]
[1772713329770,1.773,2132.5,2131.6,0.0011]
[1772713329771,1.98670172,2132.2,2131.6,0.0011]
[1772713330367,1.773,2132.5,2131.6,0.0011]
[1772713330368,3.75970172,2132.5,2131.6,0.0011]
[1772713331195,1.17238791,2132.4,2131.6,0.0011]
[1772713331371,1.17238791,2132.4,2131.5,1.17287509]
[1772713331372,1.98670172,2132.0,2131.4,0.0011]
[1772713333776,1.17266288,2131.9,2131.4,0.0011]
[1772713334901,1.98670172,2131.8,2131.1,0.0011]
[1772713335821,1.1727729,2131.7,2131.1,0.0011]
[1772713337823,6.45892061,2131.8,2131.1,0.0011]
[1772713337824,4.69099976,2131.8,2131.1,0.0011]
[1772713338446,4.69070397,2131.9,2131.1,0.0011]
[1772713339711,1.17261291,2132.0,2131.1,1.84247747]
[1772713340030,1.17261291,2132.0,2131.3,1.172993]
[1772713340944,1.17261291,2132.0,2131.1,1.84247747]
[1772713340945,3.02905838,2132.0,2131.1,1.84247747]
[1772713341098,1.85644547,2131.9,2131.1,0.0011]
[1772713341434,1.85644547,2131.9,2131.1,1.17420042]
[1772713341633,1.85644547,2131.9,2131.1,0.0011]
[1772713342009,3.02888837,2132.3,2131.1,1.84247747]
[1772713342347,1.85644547,2132.2,2131.3,0.0011]
[1772713342642,4.61373257,2132.2,2131.3,0.0011]
[1772713342838,1.85644547,2132.2,2131.3,0.0011]
[1772713343610,1.1724429,2132.3,2131.3,0.0011]
[1772713343807,9.28119421,2132.7,2131.3,1.84247747]
[1772713343808,1.172223,2132.7,2131.3,1.84247747]
[1772713344098,1.172223,2132.7,2131.5,1.84137747]
[1772713346117,1.85644547,2132.7,2131.6,1.17282792]
[1772713346951,1.85644547,2132.7,2131.6,3.01420539]
[1772713347101,4.68889201,2132.9,2131.7,1.84137747]
[1772713347301,6.54533748,2132.9,2131.7,1.84137747]
[1772713349539,1.96359778,2132.6,2131.3,2.98807313]
[1772713351529,1.96359778,2132.6,2131.4,1.81401269]
[1772713351723,3.13593072,2132.5,2131.5,1.17288294]
[1772713351919,1.96359778,2132.4,2131.5,1.17288294]
[1772713353462,1.96359778,2132.4,2131.5,2.98689563]
[1772713353629,1.1724429,2132.3,2131.5,2.98689563]
[1772713354049,1.17227797,2132.6,2131.6,1.81401269]
[1772713354252,4.68848826,2132.9,2131.7,0.04691091]
[1772713354253,1.17211308,2132.9,2131.7,0.04691091]
[1772713354553,8.40505012,2133.0,2131.8,1.81401269]
[1772713354554,4.88869,2133.0,2131.8,1.81401269]
[1772713354759,2.92509222,2133.0,2131.8,1.81401269]
[1772713355624,4.88869,2133.0,2131.9,2.98667557]
[1772713356221,1.17209222,2133.0,2132.0,1.81401269]
[1772713356854,1.17209222,2133.0,2131.9,1.17266288]
[1772713356855,1.96359778,2132.9,2131.9,1.17266288]
[1772713357024,1.96359778,2132.9,2131.7,1.81401269]
[1772713357225,1.96359778,2132.7,2131.5,1.81401269]
[1772713357853,1.96359778,2132.5,2131.5,2.98686003]
[1772713358155,1.96359778,2132.5,2131.6,1.8609258]
[1772713358456,1.17226733,2132.7,2131.6,1.8609258]
[1772713358657,1.17226733,2132.7,2131.6,1.81401269]
[1772713359355,0.001,2132.5,2131.6,1.81401269]
[1772713360059,0.001,2132.5,2131.8,1.81401269]
[1772713360358,0.001,2132.5,2131.7,1.1727729]
[1772713360856,1.96459778,2132.5,2131.6,1.17278264]
[1772713361366,1.96459778,2132.5,2131.4,1.17291157]
[1772713361535,1.96359778,2132.3,2131.3,0.0011]
[1772713361736,1.96359778,2132.1,2131.3,0.0011]
[1772713361951,1.17260787,2132.0,2131.3,0.0011]
[1772713362339,1.1725897,2132.1,2131.3,0.04801972]
[1772713362537,4.68985344,2132.3,2131.3,1.86203241]
[1772713362759,6.65345122,2132.3,2131.3,1.81511269]
[1772713362964,1.1724429,2132.3,2131.3,1.86203241]
[1772713363151,2.91942196,2132.4,2131.3,1.86203241]
[1772713363659,1.96359778,2132.3,2131.3,1.86203241]
[1772713364066,1.17249788,2132.2,2131.4,1.17293797]
[1772713364361,1.17249788,2132.2,2131.5,0.04691531]
[1772713364749,2.91943438,2132.4,2131.5,0.04691531]
[1772713365462,2.9193911,2132.4,2131.5,0.04691531]
[1772713366061,2.9193911,2132.4,2131.6,1.17282792]
[1772713366265,1.96359778,2132.3,2131.5,1.17285726]
[1772713367264,1.96359778,2132.3,2131.3,0.0011]
[1772713367445,1.96359778,2132.3,2131.3,1.17409208]
[1772713368157,1.96359778,2132.1,2131.3,0.0011]
[1772713369157,1.84038073,2131.9,2131.3,0.0011]
[1772713370575,1.84038073,2131.7,2131.3,0.0011]
[1772713370939,1.84038073,2131.7,2131.5,0.0011]
[1772713371158,1.17271789,2131.8,2131.5,0.0011]
[1772713371762,3.01309862,2131.8,2131.3,0.0011]
[1772713372071,1.84038073,2131.7,2131.3,0.0011]
[1772713373273,3.0129886,2132.0,2131.3,0.0011]
[1772713373469,1.17260787,2132.0,2131.3,0.0011]
[1772713374875,3.0129886,2132.0,2131.3,0.0011]
[1772713375752,1.17260787,2132.0,2131.3,0.0011]
[1772713375955,1.84038073,2131.9,2131.3,0.0011]
[1772713377170,1.17271789,2131.8,2131.3,0.0011]
[1772713378286,1.84038073,2131.7,2131.3,0.0011]
[1772713379065,1.17282792,2131.6,2131.3,0.0011]
[1772713379463,6.53169242,2131.7,2131.3,0.0011]
[1772713379464,1.17277772,2131.7,2131.3,0.0011]
[1772713382292,3.01315845,2131.7,2131.3,0.0011]
[1772713382862,1.17277772,2131.7,2131.3,0.0011]
[1772713383788,3.01315845,2131.7,2131.3,0.0011]
[1772713384088,3.01315845,2131.7,2131.1,0.0011]
[1772713384089,1.84038073,2131.6,2131.1,0.0011]
[1772713385384,1.84038073,2131.4,2130.9,0.0011]
[1772713385691,3.58038073,2131.3,2130.9,0.0011]
[1772713386213,1.17304804,2131.2,2130.9,0.0011]
[1772713386362,1.74,2131.3,2130.9,0.0011]
[1772713386563,2.91299599,2131.3,2130.9,0.0011]
[1772713387277,1.84038073,2131.2,2130.9,0.0011]
[1772713387892,2.91299599,2131.3,2130.9,0.0011]
[1772713389925,1.74,2131.3,2130.9,0.0011]
[1772713390218,1.17295822,2131.4,2130.9,1.92047433]
[1772713390414,1.17295822,2131.4,2130.9,0.0011]
[1772713390624,4.7542446,2131.6,2130.9,0.0011]